bitfinex/quotes_ETHUSD_20241101
["timestamp","ask_amount","ask_price","bid_price","bid_amount"]
[1730468518325,3.90826,2558.7,2558.1,3.90905]
[1730468518512,3.90832,2558.7,2558.1,3.90905]
[1730468518715,3.90839,2558.6,2558.1,3.90905]
[1730468518912,3.90839,2558.6,2558.1,3.90903]
[1730468519154,7.81642,2558.8,2558.2,3.90891]
[1730468519660,1.48786877,2559.0,2557.9,3.90945]
[1730468519826,1.2191235,2559.2,2558.9,3.90785]
[1730468520031,1.2191235,2559.2,2558.9,7.81566]
[1730468520341,5.1266735,2559.2,2558.5,3.90839]
[1730468520679,1.2191235,2559.2,2559.1,3.90762]
[1730468521247,1.2191235,2559.2,2559.0,3.90764]
[1730468521576,1.2191235,2559.2,2558.9,3.90784]
[1730468521750,1.2191235,2559.2,2558.7,3.90812]
[1730468521951,0.67520315,2559.1,2558.6,3.90828]
[1730468522178,3.90787,2559.0,2558.5,3.90846]
[1730468522365,0.67520315,2559.1,2558.8,3.90797]
[1730468522561,3.90771,2559.1,2558.6,3.9083]
[1730468522851,3.90778,2559.0,2558.4,3.90859]
[1730468523188,1.2191235,2559.2,2559.1,3.90762]
[1730468523348,1.2191235,2559.2,2559.0,3.90775]
[1730468523546,1.2191235,2559.2,2559.0,3.90767]
[1730468523769,1.2191235,2559.2,2559.1,3.90762]
[1730468524171,1.2191235,2559.2,2559.0,3.90767]
[1730468524172,0.8012,2559.5,2559.0,3.90767]
[1730468524487,1.272018,2559.5,2559.1,3.90759]
[1730468524687,0.8012,2559.5,2559.1,3.90759]
[1730468524986,0.8012,2559.5,2559.0,3.90763]
[1730468525153,0.8012,2559.5,2559.2,3.90745]
[1730468525358,3.90671,2559.7,2559.2,3.90745]
[1730468525750,3.90686,2559.6,2559.0,3.90771]
[1730468525979,3.90715,2559.5,2559.0,3.90771]
[1730468526283,3.90701,2559.5,2558.9,3.90792]
[1730468526495,3.90701,2559.5,2558.9,3.90783]
[1730468526782,4.297546,2559.6,2558.9,3.90781]
[1730468526983,4.297546,2559.6,2558.7,0.7522]
[1730468526984,4.297546,2559.6,2558.8,3.90808]
[1730468527183,3.90702,2559.5,2559.0,3.90767]
[1730468527364,4.7275066,2559.5,2559.0,3.90767]
[1730468527766,0.8204566,2559.5,2559.0,3.90769]
[1730468528061,0.8204566,2559.5,2558.9,3.90792]
[1730468528062,4.7275866,2559.5,2558.9,7.81576]
[1730468528281,0.390686,2559.6,2559.2,3.90738]
[1730468529216,4.297556,2559.6,2559.0,7.8153]
[1730468529504,3.90687,2559.6,2559.1,3.90752]
[1730468529985,3.90671,2559.7,2559.2,3.90742]
[1730468530530,3.90671,2559.7,2559.1,3.90752]
[1730468530531,3.90678,2559.7,2559.1,3.90749]
[1730468530803,0.781341,2559.6,2559.2,3.90744]
[1730468531793,0.781341,2559.6,2559.1,3.90749]
[1730468532097,0.781341,2559.6,2559.2,3.90738]
[1730468532306,4.688221,2559.6,2559.2,3.90738]
[1730468532461,4.7665101,2559.5,2559.0,3.90766]
[1730468532662,1.2191235,2560.8,2557.9,3.90933]
[1730468532663,3.90864,2558.5,2557.9,0.8092]
[1730468532862,3.90796,2558.9,2558.4,3.90867]
[1730468533094,3.0,2558.9,2558.5,3.90853]
[1730468533304,0.773867,2558.9,2558.6,3.90837]
[1730468533473,0.773867,2558.9,2558.4,3.90859]
[1730468533677,4.681797,2558.9,2558.5,3.90853]
[1730468534000,4.681797,2558.9,2558.4,3.90868]
[1730468534383,0.773867,2558.9,2558.5,3.90852]
[1730468534608,0.773867,2558.9,2558.2,0.07816969]
[1730468534898,3.90802,2558.9,2558.3,3.9087]
[1730468535100,3.90802,2558.9,2558.2,3.90887]
[1730468535261,3.90802,2558.9,2558.4,3.90868]
[1730468535466,3.90788,2559.0,2558.5,3.90846]
[1730468535803,4.772511,2559.0,2558.5,3.90846]
[1730468536169,4.772511,2559.0,2558.4,3.90868]
[1730468536170,3.90801,2558.9,2558.4,3.90868]
[1730468536473,3.90801,2558.9,2558.4,3.90861]
[1730468536689,3.90809,2558.8,2558.3,3.90882]
[1730468537005,3.90809,2558.8,2558.2,3.90886]
[1730468537006,3.90836,2558.7,2558.2,3.90886]
[1730468537176,0.781645,2558.7,2558.0,3.90919]
[1730468537382,3.90893,2558.3,2557.8,3.90947]
[1730468537689,3.90899,2558.2,2557.8,3.90947]
[1730468537861,0.7931,2558.3,2557.7,3.90965]
[1730468538061,0.7931,2558.3,2557.8,3.90959]
[1730468538398,3.90922,2558.1,2557.6,3.90976]
[1730468538700,3.90948,2557.9,2557.4,3.91009]
[1730468538899,3.90922,2558.1,2557.4,3.91009]
[1730468539060,5.67241335,2558.3,2556.7,0.8179]
[1730468539265,3.9098,2557.7,2557.2,3.91051]
[1730468539469,3.9098,2557.7,2556.7,4.72916]
[1730468539470,4.30078,2557.7,2557.0,7.82149]
[1730468539779,4.30078,2557.7,2557.1,3.91065]
[1730468539780,3.91007,2557.5,2557.1,3.91065]
[1730468540308,4.70194,2557.6,2557.1,3.91065]
[1730468540808,7.81913,2557.9,2557.3,3.91022]
[1730468541020,3.8067,2558.7,2557.8,3.90957]
[1730468541170,3.90869,2558.4,2557.8,3.90948]
[1730468541508,3.90891,2558.3,2557.7,3.90962]
[1730468541716,0.8067,2558.5,2557.7,0.390962]
[1730468541929,0.8067,2558.5,2557.4,3.91022]
[1730468542205,3.90938,2558.0,2557.5,3.91005]
[1730468542409,3.90948,2557.9,2557.4,3.91011]
[1730468542705,3.90948,2557.9,2557.4,3.91014]
[1730468542706,4.4331259,2557.9,2557.4,3.91014]
[1730468542910,3.90976,2557.7,2557.2,3.91044]
[1730468543114,3.90976,2557.7,2557.2,3.91043]
[1730468543869,3.0,2558.0,2557.3,0.07820372]
[1730468544080,3.90977,2557.7,2557.2,3.91044]
[1730468544383,3.90994,2557.6,2557.0,3.91076]
[1730468544583,3.90976,2557.7,2557.1,3.91058]
[1730468544771,3.9094,2558.0,2557.4,3.91011]
[1730468544969,3.90947,2557.9,2557.5,3.90993]
[1730468545174,3.9094,2558.0,2557.5,7.81991]
[1730468545400,0.7593,2558.1,2557.7,3.90974]
[1730468545598,0.7593,2558.1,2557.5,3.90993]
[1730468545809,3.90943,2558.0,2557.5,7.8199]
[1730468545971,3.90958,2557.9,2557.4,3.91021]
[1730468546176,3.90943,2558.0,2557.5,3.91005]
[1730468546522,3.90946,2557.9,2557.3,3.91029]
[1730468546724,3.90976,2557.7,2557.3,3.91029]
[1730468546870,3.90976,2557.7,2557.2,3.91052]
[1730468547075,7.81965,2557.7,2557.2,3.91052]
[1730468547375,3.90976,2557.7,2557.2,7.82087]
[1730468547571,3.90962,2557.8,2557.3,3.91028]
[1730468548418,4.7382223,2557.8,2557.0,3.9107]
[1730468548574,0.8286023,2557.8,2557.3,3.91029]
[1730468548911,4.7382223,2557.8,2557.1,3.91055]
[1730468549070,4.7382223,2557.8,2557.4,3.91019]
[1730468549272,0.7593,2558.1,2557.3,3.91036]
[1730468549273,0.7593,2558.1,2557.6,3.90984]
[1730468549477,0.828,2558.4,2558.2,3.90897]
[1730468549672,0.828,2558.4,2557.8,3.90949]
[1730468549673,4.73671,2558.4,2557.8,3.90949]
[1730468549908,0.828,2558.4,2557.6,3.90981]
[1730468550119,0.828,2558.4,2557.7,3.90964]
[1730468550120,3.90915,2558.1,2557.7,3.90964]
[1730468550275,4.36722573,2558.9,2556.8,3.91113]
[1730468550276,1.234615,2558.0,2556.8,3.91113]
[1730468550600,3.91001,2557.6,2557.1,3.91066]
[1730468550773,3.90983,2557.7,2557.2,3.91044]
[1730468550973,3.90961,2557.8,2557.3,3.9103]
[1730468551478,3.91,2557.6,2557.2,3.91044]
[1730468551714,3.90972,2557.8,2557.2,3.91038]
[1730468552006,0.475342,2557.8,2557.3,3.91036]
[1730468552171,4.75313,2558.0,2556.8,0.07820911]
[1730468552372,4.75313,2558.0,2557.6,3.90991]
[1730468552617,0.8437,2558.0,2557.7,3.90966]
[1730468552804,3.0,2558.2,2557.8,3.90958]
[1730468553001,3.0,2558.2,2557.7,3.90966]
[1730468553002,3.90899,2558.2,2557.7,3.90966]
[1730468553176,4.68424,2558.2,2557.8,3.90958]
[1730468553379,0.77525,2558.2,2557.4,0.7897]
[1730468553696,4.68426,2558.2,2557.7,7.81928]
[1730468554024,3.90915,2558.1,2557.5,7.81988]
[1730468554206,3.90915,2558.1,2557.7,3.90975]
[1730468554512,4.852861,2558.1,2557.5,3.90991]
[1730468554719,3.90938,2558.0,2557.6,3.90991]
[1730468554907,0.943711,2558.1,2557.7,3.90976]
[1730468555212,0.8437,2558.3,2557.3,3.91037]
[1730468555416,0.8437,2558.3,2557.9,7.81882]
[1730468555577,3.90906,2558.2,2557.7,3.90967]
[1730468555776,3.90906,2558.2,2557.7,3.90965]
[1730468555977,4.775232,2558.2,2557.5,7.8199]
[1730468556201,0.866172,2558.2,2557.1,0.8503]
[1730468556379,4.75262,2558.3,2557.2,0.62819801]
[1730468556579,4.75262,2558.3,2557.8,3.90946]
[1730468556874,0.8437,2558.3,2557.5,0.07819075]
[1730468557080,0.8437,2558.3,2557.2,0.55]
[1730468557277,0.8437,2558.3,2557.7,7.81933]
[1730468557278,3.90904,2558.2,2557.7,7.81933]
[1730468557520,4.775205,2558.2,2557.7,3.90966]
[1730468557819,4.775205,2558.2,2557.7,7.81933]
[1730468558259,4.775205,2558.2,2557.7,3.90966]
[1730468558383,4.775205,2558.2,2557.7,3.90965]
[1730468558884,3.90938,2558.0,2557.5,3.90995]
[1730468559096,0.8437,2558.3,2557.8,3.90951]
[1730468559287,4.75264,2558.3,2557.8,3.90952]
[1730468559818,4.75264,2558.3,2557.9,3.90945]
[1730468560019,4.75264,2558.3,2557.7,3.90963]
[1730468560020,3.90901,2558.2,2557.7,3.90963]
[1730468560225,4.75255,2558.3,2557.7,7.81928]
[1730468560410,4.384315,2558.2,2557.7,3.90962]
[1730468561284,0.475255,2558.2,2557.5,3.90995]
[1730468561522,3.90942,2558.0,2557.5,3.90995]
[1730468561827,3.90967,2557.8,2557.3,3.9103]
[1730468562117,3.90967,2557.8,2557.4,3.91018]
[1730468562277,3.90992,2557.6,2557.1,3.91055]
[1730468562481,3.91022,2557.4,2556.8,3.91113]
[1730468562691,0.391022,2557.3,2556.4,0.8393]
[1730468562926,3.91007,2557.5,2557.0,3.91074]
[1730468563222,3.91025,2557.4,2557.0,3.91074]
[1730468563398,8.22755893,2557.7,2557.0,7.82147]
[1730468563593,8.22755893,2557.7,2557.0,3.91073]
[1730468563594,3.91022,2557.4,2557.0,3.91073]
[1730468563993,3.91022,2557.4,2556.8,3.91112]
[1730468564219,3.91059,2557.2,2556.7,3.91121]
[1730468564542,3.91075,2557.1,2556.5,3.91159]
[1730468564683,4.73414,2557.0,2556.5,3.91159]
[1730468564887,3.9111,2556.9,2556.4,3.91173]
[1730468565231,3.91114,2556.8,2556.3,3.91189]
[1730468565584,4.775524,2556.9,2556.4,3.91166]
[1730468565804,4.775524,2556.9,2556.0,4.76915]
[1730468565805,3.91153,2556.6,2556.1,3.91212]
[1730468566015,3.52888893,2556.8,2555.9,3.91243]
[1730468566016,3.91191,2556.3,2555.9,3.91243]
[1730468566225,3.91207,2556.2,2555.8,0.05866028]
[1730468566402,0.473117,2556.2,2555.9,3.91242]
[1730468566612,0.8191,2556.3,2556.0,3.91232]
[1730468566920,0.8191,2556.3,2555.8,0.05866028]
[1730468567230,0.8191,2556.7,2556.4,3.91166]
[1730468567430,3.91094,2557.0,2556.4,3.91173]
[1730468567431,3.91109,2556.9,2556.4,3.91173]
[1730468567603,5.13215189,2556.9,2556.4,3.91173]
[1730468567803,0.8597,2557.0,2556.7,3.91125]
[1730468567998,0.8597,2557.0,2556.7,3.9112]
[1730468568230,3.91076,2557.1,2556.3,0.07823686]
[1730468568532,3.52888893,2557.1,2556.1,3.9121]
[1730468568701,4.70988,2556.6,2556.1,3.9121]
[1730468568902,4.70988,2556.6,2555.9,3.91251]
[1730468568903,0.7984,2556.6,2555.9,3.91251]
[1730468569091,0.7984,2556.6,2556.1,3.91215]
[1730468569289,0.7984,2556.6,2556.2,3.9119]
[1730468569715,4.70984,2556.6,2556.2,3.9119]
[1730468569921,4.70984,2556.6,2556.0,3.91236]
[1730468569922,0.7984,2556.6,2556.0,3.91236]
[1730468570427,4.70986,2556.6,2556.1,3.91212]
[1730468570638,3.9112,2556.8,2556.1,3.91211]
[1730468571190,3.911,2556.9,2556.1,3.91211]
[1730468571387,1.161075,2556.9,2556.2,3.91196]
[1730468571687,1.161075,2556.9,2556.1,3.91211]
[1730468571688,5.072195,2556.9,2556.1,7.82425]
[1730468571885,3.91114,2556.8,2556.0,0.7931]
[1730468572394,3.91167,2556.5,2555.5,0.8383]
[1730468572591,3.91167,2556.5,2555.8,3.97125028]
[1730468573023,0.7925,2556.3,2555.8,0.05866028]
[1730468573373,0.7925,2556.3,2555.9,3.91241]
[1730468573537,4.69699,2556.7,2556.0,3.91234]
[1730468573833,3.91148,2556.6,2556.0,3.91234]
[1730468574221,0.7857,2557.0,2556.5,3.91159]
[1730468574533,0.7857,2557.4,2556.7,3.91126]
[1730468574829,3.9104,2557.3,2556.2,1.339]
[1730468575038,4.69599,2557.4,2556.7,3.91119]
[1730468575245,3.91039,2557.3,2556.7,3.91119]
[1730468575399,3.91039,2557.3,2556.5,3.91147]
[1730468575594,1.646315,2557.4,2556.4,3.9117]
[1730468575595,3.91052,2557.2,2556.4,3.9117]
[1730468575793,3.91079,2557.1,2556.4,3.9117]
[1730468576314,7.82178,2557.0,2556.3,3.91179]
[1730468576491,3.91056,2557.2,2556.3,0.0782298]
[1730468576692,3.91083,2557.0,2556.0,3.91232]
[1730468576893,0.8438,2557.1,2556.1,3.91213]
[1730468576894,3.91122,2556.8,2556.1,3.91213]
[1730468577396,3.91098,2556.9,2556.2,3.91198]
[1730468577623,3.91115,2556.8,2556.0,3.91229]
[1730468577823,3.91167,2556.5,2555.8,0.05866028]
[1730468578028,3.91139,2556.7,2556.0,3.91232]
[1730468578402,3.91114,2556.8,2556.1,3.9122]
[1730468578601,3.91114,2556.8,2556.1,3.91211]
[1730468579525,3.9113,2556.7,2556.0,3.91232]
[1730468579708,3.9113,2556.7,2555.9,3.91239]
[1730468580030,0.782238,2556.7,2556.1,3.9121]
[1730468580232,7.82224,2556.9,2556.2,3.91198]
[1730468580397,3.91111,2556.9,2556.2,3.91198]
[1730468580593,4.75459,2557.1,2556.3,3.9118]
[1730468580798,3.91111,2556.9,2556.2,3.91204]
[1730468580995,3.91125,2556.8,2555.8,3.97129028]
[1730468581209,3.91146,2556.6,2556.0,3.91235]
[1730468581432,3.91129,2556.7,2556.0,3.91223]
[1730468582002,3.91146,2556.6,2556.0,3.91223]
[1730468582203,3.91161,2556.5,2555.9,3.91249]
[1730468582543,3.9123,2556.1,2555.8,0.05866028]
[1730468582838,3.91251,2555.9,2555.8,0.05866028]
[1730468583009,3.91221,2556.1,2555.8,0.05866028]
[1730468583543,0.8685,2556.7,2555.9,3.91237]
[1730468583704,3.91146,2556.6,2556.0,3.91229]
[1730468583899,3.91146,2556.6,2555.8,0.05866028]
[1730468584137,3.91168,2556.5,2555.8,3.97124028]
[1730468584438,3.91146,2556.6,2555.8,3.97124028]
[1730468584674,3.91168,2556.5,2555.8,3.97125028]
[1730468585105,7.82336,2556.5,2555.8,3.97125028]
[1730468585301,0.477996,2556.6,2555.8,0.05866028]
[1730468585539,3.91209,2556.2,2555.8,0.05866028]
[1730468586038,3.91229,2556.1,2555.8,0.05866028]
[1730468586535,0.8685,2556.7,2555.8,3.97132028]
[1730468586750,3.91147,2556.6,2556.0,3.91228]
[1730468586926,3.91099,2556.9,2556.2,3.91194]
[1730468587129,0.814,2557.0,2556.5,3.91149]
[1730468587840,3.90938,2558.0,2556.9,0.8224]
[1730468588046,3.90941,2558.0,2557.3,3.91022]
[1730468588560,0.7974,2558.1,2557.3,3.91022]
[1730468588714,3.90958,2557.9,2557.2,3.91048]
[1730468588915,3.90935,2558.0,2557.2,3.91048]
[1730468588916,3.90963,2557.8,2557.2,3.91048]
[1730468589151,3.90935,2558.0,2557.2,3.91048]
[1730468589361,3.90962,2557.8,2557.2,7.82093]
[1730468589680,3.90935,2558.0,2557.3,3.91028]
[1730468589827,3.90953,2557.9,2557.2,7.82081]
[1730468590017,3.90962,2557.8,2557.2,3.91038]
[1730468590217,0.7974,2558.1,2556.9,0.8224]
[1730468590419,3.9095,2557.9,2557.2,7.82079]
[1730468590627,3.90975,2557.8,2557.1,3.91064]
[1730468590820,3.90975,2557.8,2557.0,3.9107]
[1730468590821,3.90984,2557.7,2557.0,3.9107]
[1730468591423,3.90984,2557.7,2557.0,7.82144]
[1730468591622,3.90955,2557.9,2556.9,0.8224]
[1730468591943,3.90955,2557.9,2557.2,3.91041]
[1730468592153,4.70667,2558.1,2557.2,3.91041]
[1730468592457,3.90939,2558.0,2557.3,3.9103]
[1730468592656,3.90939,2558.0,2557.4,3.91021]
[1730468592886,3.90953,2557.9,2557.3,3.91036]
[1730468593027,3.90939,2558.0,2557.4,3.91018]
[1730468593428,3.90947,2557.9,2557.3,3.91036]
[1730468593637,0.7974,2558.1,2557.4,3.91018]
[1730468593829,3.90937,2558.0,2557.3,7.82065]
[1730468594033,0.7974,2558.1,2557.0,3.91081]
[1730468594234,2.49632166,2558.4,2557.8,3.9096]
[1730468594449,2.49632166,2558.4,2557.9,3.90937]
[1730468594653,1.63262166,2558.4,2558.0,3.90921]
[1730468594964,1.63262166,2558.4,2557.9,4.69667]
[1730468595280,3.90884,2558.3,2557.6,4.69719]
[1730468595564,5.54143166,2558.4,2557.4,3.91018]
[1730468595565,1.78122717,2558.2,2557.4,3.91018]
[1730468595869,3.9084,2558.6,2557.5,0.55]
[1730468596104,3.90854,2558.5,2557.8,3.90952]
[1730468596273,3.90877,2558.4,2557.7,3.90967]
[1730468596464,4.690503,2558.4,2557.7,7.81934]
[1730468596664,4.690503,2558.4,2557.5,3.90994]
[1730468596896,4.690503,2558.4,2557.7,3.90974]
[1730468597120,3.90778,2559.0,2558.2,3.90898]
[1730468597262,0.8282,2559.2,2558.6,3.90838]
[1730468597463,0.8113,2559.6,2558.7,0.8456]
[1730468597800,0.8113,2559.6,2559.1,3.90747]
[1730468597801,0.471811,2559.5,2559.1,3.90747]
[1730468597999,2.03984351,2560.1,2558.8,0.07815294]
[1730468598000,0.8113,2559.9,2558.8,3.90798]
[1730468598296,7.8136,2559.7,2558.9,3.90791]
[1730468598598,3.90686,2559.6,2558.9,3.90791]
[1730468599304,0.8113,2559.9,2558.7,0.8456]
[1730468599608,3.90725,2559.4,2558.7,0.8456]
[1730468599911,3.90691,2559.6,2558.9,3.90792]
[1730468600061,3.90691,2559.6,2558.8,7.81594]
[1730468600260,3.90691,2559.6,2558.9,3.9079]
[1730468600490,3.90691,2559.6,2559.0,3.90773]
[1730468600695,3.90664,2559.8,2559.0,3.90769]
[1730468600921,0.8113,2559.9,2558.9,0.0781488]
[1730468601201,4.71778,2559.9,2559.2,3.90739]
[1730468601400,0.8145,2560.2,2559.5,3.90698]
[1730468601600,4.72052,2560.2,2559.5,3.90698]
[1730468601899,0.43954573,2560.5,2559.7,3.90661]
[1730468601900,7.81145,2560.4,2559.7,3.90661]
[1730468602071,7.81145,2560.4,2559.7,0.7985]
[1730468602072,3.90597,2560.2,2559.7,0.7985]
[1730468602401,3.90571,2560.4,2559.7,4.70512]
[1730468602896,3.90548,2560.5,2559.7,4.7051]
[1730468603095,4.71985,2560.6,2559.9,3.90632]
[1730468603270,4.71985,2560.6,2560.0,3.90623]
[1730468603271,0.862513,2560.5,2560.0,3.90623]
[1730468603599,3.90528,2560.7,2560.0,3.90623]
[1730468603600,7.81058,2560.7,2560.0,3.90623]
[1730468603801,3.90649,2559.9,2559.3,0.837]
[1730468604173,7.81297,2559.9,2559.3,0.837]
[1730468604394,3.90648,2559.9,2559.3,0.837]
[1730468604603,3.90671,2559.7,2559.3,0.837]
[1730468604964,3.90651,2559.9,2559.3,0.837]
[1730468605159,3.90671,2559.7,2559.3,0.837]
[1730468605800,0.390651,2559.8,2559.3,0.837]
[1730468606100,3.90655,2559.8,2559.3,0.837]
[1730468606274,3.90687,2559.6,2559.3,0.837]
[1730468606476,3.90666,2559.8,2559.0,4.69265]
[1730468606688,4.72067,2560.9,2559.7,4.69169]
[1730468606895,3.90532,2560.7,2560.0,3.90612]
[1730468607077,0.390532,2560.6,2560.0,3.90612]
[1730468607413,4.295902,2560.6,2560.0,3.90612]
[1730468607897,3.90558,2560.5,2559.8,7.8129]
[1730468608102,3.90558,2560.5,2559.9,3.9064]
[1730468608459,3.90536,2560.6,2559.9,3.9064]
[1730468608664,3.90536,2560.6,2559.9,4.766183]
[1730468608865,3.90569,2560.4,2559.8,3.90646]
[1730468609110,3.90569,2560.4,2559.9,3.90639]
[1730468609292,7.81086,2560.6,2559.9,3.90631]
[1730468609491,0.47037907,2560.8,2559.8,3.90653]
[1730468609673,3.9057,2560.4,2559.8,3.90653]
[1730468609880,3.90602,2560.2,2559.7,0.785]
[1730468610088,3.90617,2560.1,2559.7,0.785]
[1730468610405,3.90602,2560.2,2559.7,0.785]
[1730468611270,7.81152,2560.4,2559.8,3.90648]
[1730468611579,0.47005357,2560.7,2559.4,4.70405]
[1730468611580,3.9063,2560.0,2559.4,4.70405]
[1730468611782,3.90649,2559.9,2559.4,0.797]
[1730468611979,3.90668,2559.8,2559.0,3.90771]
[1730468612223,3.90674,2559.7,2559.1,0.797]
[1730468612369,3.90674,2559.7,2559.1,4.70459]
[1730468612703,3.90668,2559.8,2559.2,3.90739]
[1730468613270,3.90689,2559.6,2559.1,0.797]
[1730468613472,3.90683,2559.7,2559.1,0.797]
[1730468613770,3.90686,2559.6,2559.1,0.797]
[1730468614814,4.726924,2559.8,2559.1,0.797]
[1730468614965,7.81319,2559.8,2559.2,3.90746]
[1730468615172,7.81319,2559.8,2559.1,0.87514211]
[1730468615173,3.90687,2559.6,2559.1,0.797]
[1730468615665,3.9067,2559.7,2559.1,4.70454]
[1730468616065,4.688146,2559.7,2559.1,0.797]
[1730468616283,3.90702,2559.5,2559.1,0.797]
[1730468616478,3.90689,2559.6,2559.1,0.797]
[1730468616874,3.90659,2559.8,2559.1,0.797]
[1730468617080,4.75378,2560.3,2559.2,0.07814519]
[1730468617279,3.90674,2559.7,2559.2,0.07814519]
[1730468617473,3.90674,2559.7,2559.1,4.70453]
[1730468617697,3.90674,2559.7,2559.1,0.797]
[1730468617698,3.90702,2559.5,2559.1,0.797]
[1730468617881,7.81416,2559.5,2559.1,0.797]
[1730468618082,3.90702,2559.5,2559.1,0.797]
[1730468618542,3.90702,2559.5,2558.5,4.10027276]
[1730468618543,4.39329293,2559.5,2558.5,4.76575]
[1730468618693,3.90799,2558.9,2558.5,0.8573]
[1730468619031,3.90747,2559.2,2558.6,3.90834]
[1730468619203,0.8302,2559.4,2558.5,0.8573]
[1730468619403,3.90708,2559.5,2558.9,3.90786]
[1730468619587,3.90719,2559.4,2558.9,3.90786]
[1730468619789,3.90719,2559.4,2558.7,3.90821]
[1730468620033,3.90719,2559.4,2558.7,3.90816]
[1730468620034,3.90732,2559.3,2558.7,3.90816]
[1730468620233,3.90764,2559.1,2558.6,3.90835]
[1730468620733,3.90736,2559.3,2558.7,3.90821]
[1730468621229,3.90747,2559.2,2558.5,0.8573]
[1730468621439,4.3454388,2559.3,2558.8,3.90802]
[1730468621917,3.90748,2559.2,2558.7,3.90815]
[1730468622112,3.90763,2559.1,2558.6,3.90834]
[1730468622317,3.90805,2558.9,2558.3,3.90875]
[1730468622690,3.90805,2558.9,2558.1,4.74285]
[1730468622691,3.90815,2558.8,2558.1,4.74285]
[1730468622889,3.90808,2558.8,2558.2,3.90892]
[1730468623135,3.90808,2558.8,2558.3,3.90883]
[1730468623344,4.73909,2559.0,2558.3,3.90883]
[1730468623345,0.8312,2559.0,2558.3,3.90883]
[1730468623739,0.8312,2559.0,2557.9,3.90944]
[1730468623740,3.9084,2558.6,2557.9,3.90944]
[1730468624044,3.90913,2558.2,2557.6,4.7437]
[1730468624340,3.90911,2558.2,2557.6,4.74363]
[1730468624542,3.90892,2558.3,2557.8,3.90951]
[1730468624893,3.90892,2558.3,2557.6,0.8338]
[1730468625299,3.90892,2558.3,2556.6,4.71443327]
[1730468625300,3.90884,2558.3,2557.2,0.8338]
[1730468625493,3.90884,2558.3,2557.5,3.90996]
[1730468625494,3.90922,2558.1,2557.5,3.90996]
[1730468626052,3.90945,2558.0,2557.3,3.91022]
[1730468626254,3.90945,2558.0,2557.2,0.8338]
[1730468626255,3.90916,2558.1,2557.5,3.90996]
[1730468626441,3.90939,2558.0,2557.4,3.91019]
[1730468626641,4.383034,2558.2,2557.4,3.91019]
[1730468626849,3.90903,2558.2,2557.6,3.90982]
[1730468627165,3.90861,2558.5,2557.9,3.90931]
[1730468627317,3.90875,2558.4,2557.9,3.90937]
[1730468627722,3.90887,2558.3,2557.7,3.90976]
[1730468628052,3.90887,2558.3,2557.5,0.8338]
[1730468628053,3.90869,2558.4,2557.8,7.81909]
[1730468628255,3.90886,2558.3,2557.6,3.9098]
[1730468628420,3.90908,2558.2,2557.6,7.81962]
[1730468628615,3.90886,2558.3,2557.6,3.9098]
[1730468628616,3.90915,2558.1,2557.6,3.9098]
[1730468629132,3.90915,2558.1,2557.5,0.8338]
[1730468629133,3.9094,2558.0,2557.5,4.74386]
[1730468629464,3.90938,2558.0,2557.5,0.8338]
[1730468629799,7.81815,2558.2,2557.6,3.90976]
[1730468629917,0.781815,2558.2,2557.5,0.8338]
[1730468630122,3.90887,2558.3,2557.8,3.9095]
[1730468630666,4.70745,2558.1,2557.2,0.8496]
[1730468630820,4.70745,2558.1,2557.1,3.91066]
[1730468631019,3.91019,2557.5,2556.9,4.70316]
[1730468631256,3.90984,2557.7,2556.9,0.7923]
[1730468631558,3.91001,2557.6,2557.0,7.82154]
[1730468631732,3.91001,2557.6,2557.0,3.91071]
[1730468632067,3.90976,2557.7,2557.1,3.9106]
[1730468632221,3.90999,2557.6,2557.1,3.9106]
[1730468632621,3.90955,2557.9,2557.1,3.91057]
[1730468632820,0.861705,2557.9,2556.9,0.7923]
[1730468633043,3.91021,2557.5,2556.9,4.7032]
[1730468633218,3.91038,2557.3,2556.6,3.91139]
[1730468633419,3.91038,2557.3,2556.6,3.91137]
[1730468633420,3.91059,2557.2,2556.6,3.91137]
[1730468633624,3.91071,2557.1,2556.6,3.91137]
[1730468633837,3.91032,2557.4,2556.7,3.91124]
[1730468634042,3.91032,2557.4,2556.5,0.7851]
[1730468634043,7.82063,2557.4,2556.8,3.91104]
[1730468634225,8.47726242,2557.4,2556.8,3.91104]
[1730468634447,0.8516,2557.5,2556.9,3.91096]
[1730468634448,4.76169,2557.5,2556.9,3.91096]
[1730468634648,4.76178,2557.5,2556.9,7.82186]
[1730468635054,4.76178,2557.5,2556.5,4.69666]
[1730468635055,3.91022,2557.4,2556.7,3.91117]
[1730468635252,3.91043,2557.3,2556.8,3.91104]
[1730468635459,3.91043,2557.3,2556.5,0.7851]
[1730468635759,3.91068,2557.1,2556.6,3.91135]
[1730468635931,4.386573,2557.3,2556.2,4.77413]
[1730468636127,3.91069,2557.1,2556.6,3.91133]
[1730468636736,4.386683,2557.3,2556.7,3.91128]
[1730468636737,3.91053,2557.2,2556.7,3.91128]
[1730468636960,4.386683,2557.3,2556.6,3.91133]
[1730468636961,3.91068,2557.1,2556.6,3.91133]
[1730468637183,3.91053,2557.2,2556.7,4.69289]
[1730468637476,0.8516,2557.5,2556.7,1.72024551]
[1730468637662,3.91029,2557.4,2556.9,3.9109]
[1730468638032,3.91029,2557.4,2556.9,3.91098]
[1730468638235,3.91064,2557.2,2556.6,3.91136]
[1730468638532,3.91039,2557.3,2556.8,3.91102]
[1730468639333,3.91039,2557.3,2556.8,7.82209]